bitfinex/quotes_ETHUSD_20260214
["timestamp","ask_amount","ask_price","bid_price","bid_amount"]
[1771055070205,0.04615768,2056.3,2055.6,1.67309998]
[1771055070398,0.04615768,2056.3,2055.7,0.47692116]
[1771055070820,0.04615768,2056.3,2055.6,13.34219027]
[1771055071119,0.04615768,2056.3,2055.6,13.81911143]
[1771055071323,0.04615768,2056.3,2055.6,0.47692116]
[1771055071615,1.21583503,2056.2,2055.7,13.34219027]
[1771055072590,1.26197606,2056.3,2055.7,13.34219027]
[1771055072813,1.26193606,2056.3,2055.7,13.81911143]
[1771055073318,0.04615768,2056.2,2055.7,13.34219027]
[1771055073695,1.26199439,2056.2,2055.7,13.34219027]
[1771055074632,1.21583671,2056.2,2055.7,13.34219027]
[1771055076529,1.21583671,2056.2,2055.7,13.81911143]
[1771055077025,1.26193686,2056.3,2055.7,15.03523956]
[1771055077523,1.26193686,2056.3,2055.7,13.81911143]
[1771055077722,1.21577918,2056.3,2055.8,0.47692116]
[1771055079994,4.86349987,2056.6,2056.2,0.47692116]
[1771055079995,0.0011,2056.6,2056.2,0.47692116]
[1771055080223,1.21670208,2056.6,2056.4,13.34219027]
[1771055080432,0.0011,2056.8,2056.4,13.34219027]
[1771055080601,0.0011,2056.8,2056.4,13.81911143]
[1771055081317,0.0011,2056.8,2056.6,13.34219027]
[1771055081513,0.0011,2056.8,2056.5,0.47692116]
[1771055081736,0.0011,2056.8,2056.3,13.34219027]
[1771055081737,0.0011,2056.8,2056.3,0.47692116]
[1771055082310,0.0011,2056.8,2056.1,15.03499569]
[1771055082311,0.04725768,2056.8,2056.1,15.03499569]
[1771055082509,0.04725768,2056.8,2056.3,13.34219027]
[1771055082742,0.0011,2056.8,2056.4,0.47692116]
[1771055083343,0.04725768,2056.8,2056.2,0.47692116]
[1771055083514,0.04725768,2056.8,2056.0,13.81911143]
[1771055083715,1.26169713,2056.7,2056.0,15.03505533]
[1771055085048,1.26273952,2056.8,2056.1,0.47692116]
[1771055086731,1.21658184,2056.8,2056.2,0.47692116]
[1771055087250,1.26273952,2056.8,2056.2,0.47692116]
[1771055088144,0.04615768,2056.7,2056.0,15.03501949]
[1771055088325,0.04615768,2056.7,2056.1,0.47692116]
[1771055088726,1.21658184,2056.8,2056.2,0.47692116]
[1771055089056,1.26273952,2056.8,2056.2,0.47692116]
[1771055091627,0.04615768,2056.7,2056.0,0.47692116]
[1771055092528,13.38834795,2056.5,2055.7,0.47692116]
[1771055092832,0.04615768,2056.5,2055.7,0.47692116]
[1771055093745,1.21571678,2056.4,2055.7,0.47692116]
[1771055094059,1.21571678,2056.4,2055.8,0.47692116]
[1771055094237,1.21559856,2056.6,2055.8,0.47692116]
[1771055094440,1.21559856,2056.6,2055.9,0.47692116]
[1771055094958,2.496,2056.5,2055.9,0.47692116]
[1771055096037,2.496,2056.5,2056.0,0.47692116]
[1771055096237,3.71166654,2056.5,2056.0,0.47692116]
[1771055097363,3.75782422,2056.5,2055.8,0.47692116]
[1771055097664,0.04615768,2056.4,2055.8,0.47692116]
[1771055097827,3.75782422,2056.5,2055.8,0.47692116]
[1771055100262,3.71166654,2056.5,2055.8,0.47692116]
[1771055100569,3.71166654,2056.5,2055.9,0.46784295]
[1771055101028,3.71167157,2056.5,2055.9,0.46784295]
[1771055103840,4.17988857,2056.5,2055.9,0.46784295]
[1771055104343,0.468217,2056.4,2055.8,13.34219027]
[1771055104725,0.468217,2056.4,2055.8,13.83441638]
[1771055105163,1.2157759,2056.3,2055.8,0.49222611]
[1771055106460,0.468217,2056.1,2055.5,0.001]
[1771055106667,2.964217,2056.0,2055.5,0.001]
[1771055106970,2.496,2056.0,2055.5,0.49322611]
[1771055107373,1.21601245,2055.9,2055.5,0.49322611]
[1771055110181,3.71195651,2056.0,2055.6,0.49222611]
[1771055111943,2.496,2056.0,2055.6,0.49222611]
[1771055112145,0.468217,2056.4,2055.7,13.83441638]
[1771055112640,0.468217,2056.4,2055.5,0.001]
[1771055112641,13.34219027,2056.3,2055.5,0.001]
[1771055112846,2.183,2056.5,2055.5,0.001]
[1771055112847,0.468217,2055.8,2055.5,0.001]
[1771055113763,0.468217,2055.6,2055.3,0.001]
[1771055114082,0.468217,2055.8,2055.3,0.001]
[1771055115378,1.21601245,2055.9,2055.3,0.001]
[1771055115974,1.68422945,2055.9,2055.3,0.001]
[1771055116384,0.468217,2055.8,2055.3,0.001]
[1771055116946,0.468217,2055.7,2055.3,0.001]
[1771055117150,0.468217,2055.7,2054.9,0.001]
[1771055117350,0.468217,2055.7,2054.9,0.49322611]
[1771055118451,1.68440692,2055.6,2054.9,0.49322611]
[1771055119256,1.68440692,2055.6,2055.0,0.001]
[1771055120090,0.468217,2055.5,2055.0,0.001]
[1771055120485,1.21630826,2055.4,2055.0,0.001]
[1771055120687,1.21630826,2055.4,2055.0,0.49322611]
[1771055122391,4.86514268,2055.5,2055.0,0.49322611]
[1771055123286,5.33335968,2055.5,2055.0,0.001]
[1771055124890,4.86514268,2055.5,2055.0,0.001]
[1771055125091,0.468217,2055.4,2055.0,0.001]
[1771055126693,7.36214268,2055.5,2055.0,0.49322611]
[1771055126992,7.36214268,2055.5,2055.0,0.001]
[1771055127194,7.83035968,2055.5,2055.0,0.001]
[1771055128989,0.468217,2055.4,2055.0,0.001]
[1771055129188,0.468217,2055.4,2054.9,0.001]
[1771055131004,1.21636744,2055.3,2054.9,0.001]
[1771055131807,1.68791933,2055.3,2054.9,0.001]
[1771055132169,0.47155189,2055.2,2054.9,0.001]
[1771055132780,1.21636744,2055.3,2054.9,0.001]
[1771055133170,1.21636744,2055.3,2054.8,0.001]
[1771055133371,1.68791933,2055.3,2054.8,0.001]
[1771055138082,1.21636744,2055.3,2054.8,0.001]
[1771055139712,1.21636744,2055.3,2054.8,0.49834903]
[1771055140013,4.86546976,2055.4,2054.8,0.49834903]
[1771055141389,5.32092656,2055.4,2054.8,0.49834903]
[1771055142327,1.21630826,2055.4,2054.9,0.49734903]
[1771055142695,1.21630826,2055.4,2055.0,0.49734903]
[1771055142896,3.71328981,2055.5,2055.0,0.49734903]
[1771055147529,2.497,2055.5,2055.2,0.49734903]
[1771055148203,3.71325337,2055.5,2055.2,0.49734903]
[1771055150540,0.0011,2055.7,2055.2,0.49734903]
[1771055150700,1.21723483,2055.7,2055.4,0.49734903]
[1771055153237,0.0011,2055.7,2055.2,0.49734903]
[1771055159011,0.0011,2055.7,2055.1,13.32957787]
[1771055159309,0.0011,2055.7,2055.1,13.8269269]
[1771055159737,0.0011,2055.7,2055.2,0.49734903]
[1771055161638,0.0011,2055.7,2055.4,0.49784301]
[1771055163738,0.0011,2055.7,2055.2,0.49784301]
[1771055164449,0.0011,2055.7,2055.3,0.49784301]
[1771055171564,0.0011,2055.7,2055.4,13.32957787]
[1771055171723,0.0011,2055.7,2055.3,0.49784301]
[1771055173656,0.0011,2055.7,2055.2,13.32957787]
[1771055173858,0.0011,2055.7,2055.1,0.49784301]
[1771055174158,0.48860989,2055.7,2055.1,0.49784301]
[1771055175562,0.0011,2055.7,2055.4,13.82742088]
[1771055176783,0.0011,2055.7,2055.4,0.49784301]
[1771055181194,0.0011,2055.7,2055.4,13.82089894]
[1771055181703,0.0011,2055.7,2055.4,15.03719986]
[1771055182075,0.0011,2055.7,2055.4,13.82089894]
[1771055182573,0.0011,2055.7,2055.3,1.21635833]
[1771055183092,0.0011,2055.7,2055.3,13.82089894]
[1771055183294,0.0011,2055.7,2055.4,0.49784301]
[1771055184485,0.0011,2055.7,2055.4,1.71413388]
[1771055188098,0.0011,2055.7,2055.5,13.82089894]
[1771055188597,3.71406178,2056.0,2055.5,13.82089894]
[1771055189885,2.4981,2056.0,2055.6,0.49784301]
[1771055190274,2.4981,2056.0,2055.7,13.82089894]
[1771055190465,0.0011,2056.0,2055.7,13.82089894]
[1771055192400,5.74044388,2056.2,2056.0,13.32305593]
[1771055192401,0.0011,2056.2,2056.0,13.32305593]
[1771055192594,0.0011,2056.2,2056.0,13.80834389]
[1771055194097,0.0011,2056.2,2055.9,1.21597994]
[1771055194098,0.0011,2056.2,2055.7,3.7130938]
[1771055194283,0.0011,2056.2,2055.8,13.32305593]
[1771055194783,0.0011,2056.2,2055.7,4.19838176]
[1771055195995,0.0011,2056.2,2055.8,0.48528796]
[1771055196578,0.0011,2056.2,2055.9,13.80834389]
[1771055198203,0.0011,2056.3,2056.0,1.70124126]
[1771055200205,0.0011,2056.3,2056.2,1.21583503]
[1771055200412,0.0011,2056.3,2056.1,14.53890836]
[1771055201077,0.0011,2056.3,2056.1,14.99796225]
[1771055201502,0.0011,2056.4,2056.1,14.99796225]
[1771055202601,0.0011,2056.5,2056.3,13.32305593]
[1771055203602,0.0011,2056.5,2056.1,13.32305593]
[1771055203795,0.45461679,2056.5,2056.0,17.03500866]
[1771055204194,0.45461679,2056.5,2055.9,1.67504028]
[1771055204407,0.45461679,2056.5,2056.0,13.32305593]
[1771055204788,1.6702863,2056.5,2056.0,14.53899026]
[1771055205707,0.0011,2056.5,2056.2,13.32305593]
[1771055208306,0.0011,2056.5,2056.1,13.32305593]
[1771055208626,0.45461679,2056.5,2056.1,14.53894816]
[1771055209326,0.0011,2056.5,2056.1,14.53894816]
[1771055209723,0.0011,2056.5,2056.1,14.99800205]
[1771055209897,0.0011,2056.6,2056.3,13.32305593]
[1771055210295,0.0011,2056.6,2056.2,0.45905389]
[1771055210502,1.21672605,2056.6,2056.2,0.45905389]
[1771055210701,0.0011,2056.6,2056.2,0.45905389]
[1771055210901,1.21670285,2056.6,2056.0,14.99802523]
[1771055212023,1.21670285,2056.6,2056.0,17.49402523]
[1771055212205,0.0011,2056.6,2056.0,17.49402523]
[1771055212520,0.0011,2056.6,2056.1,0.45905389]
[1771055213106,0.0011,2056.6,2056.2,13.32305593]
[1771055213429,0.0011,2056.6,2056.1,13.78210982]
[1771055213832,0.0011,2056.6,2056.3,1.2157759]
[1771055214033,0.0011,2056.6,2056.3,1.67482979]
[1771055215730,0.0011,2056.6,2056.3,0.45905389]
[1771055215911,0.0011,2056.6,2056.2,1.21579077]
[1771055216433,0.45461679,2056.6,2056.1,14.53890561]
[1771055216762,0.0011,2056.6,2056.1,14.9979595]
[1771055216914,0.0011,2056.6,2056.2,0.45905389]
[1771055218399,0.0011,2056.6,2056.3,1.2157759]
[1771055218819,0.0011,2056.6,2056.2,1.67484517]
[1771055219017,0.0011,2056.6,2056.3,0.45905389]
[1771055219227,0.0011,2056.7,2056.3,13.78210982]
[1771055220032,0.0011,2056.7,2056.3,13.32305593]
[1771055220327,1.66911535,2056.6,2056.1,13.32305593]
[1771055220537,0.45351679,2056.5,2056.1,14.53894942]
[1771055221047,0.45351679,2056.5,2056.0,1.2159173]
[1771055221222,0.45351679,2056.5,2055.9,14.99809971]
[1771055221812,1.21559856,2056.6,2056.0,0.49039345]
[1771055222235,1.70322359,2056.6,2056.0,0.49039345]
[1771055222635,0.48762503,2056.5,2056.0,1.21592141]
[1771055223739,1.21559983,2056.6,2056.0,1.70631486]
[1771055224550,0.48762503,2056.6,2056.0,1.70631486]
[1771055224716,0.48762503,2056.6,2055.9,14.53903549]
[1771055226544,0.48762503,2056.6,2055.9,15.02942894]
[1771055226739,0.48762503,2056.5,2055.9,15.02942894]
[1771055227052,1.21565573,2056.6,2056.0,0.49039345]
[1771055227246,1.21560421,2056.6,2056.0,0.49039345]
[1771055227448,1.70429853,2056.7,2056.1,13.32305593]
[1771055229628,1.70429853,2056.7,2056.0,1.70630718]
[1771055229629,0.48762503,2056.6,2056.0,1.70630718]
[1771055231788,1.70430591,2056.7,2056.1,13.32305593]
[1771055232124,0.48762503,2056.6,2056.1,13.32305593]
[1771055233468,0.48762503,2056.6,2056.0,1.21591373]
[1771055233926,1.70327792,2056.6,2056.0,1.70630718]
[1771055234123,0.48762503,2056.6,2056.0,1.70630718]
[1771055234453,1.70323095,2056.6,2056.0,1.70630718]
[1771055234951,0.0011,2056.7,2056.2,0.49039345]
[1771055235149,1.21665324,2056.7,2056.2,0.49039345]
[1771055235347,1.21665324,2056.7,2056.1,13.32305593]
[1771055235536,1.70427514,2056.7,2056.1,13.81344938]
[1771055236066,0.0011,2056.7,2056.5,13.32305593]
[1771055236265,0.0011,2056.9,2056.5,13.81344938]
[1771055236569,1.21652213,2056.9,2056.7,13.32305593]
[1771055236796,1.21652213,2056.9,2056.4,0.49039345]
[1771055236797,1.21652213,2056.9,2056.5,13.32305593]
[1771055237267,1.2153112,2057.1,2056.8,13.32305593]
[1771055237630,1.70293623,2057.1,2056.8,13.32305593]
[1771055238933,1.70293623,2057.1,2056.7,13.30552693]
[1771055240560,0.48762503,2057.3,2056.7,13.30552693]
[1771055241973,0.48762503,2057.3,2056.5,13.30552693]
[1771055242640,0.48762503,2057.3,2056.3,1.70613375]
[1771055242641,0.48762503,2057.1,2056.3,13.79592038]
[1771055242839,0.48762503,2057.0,2056.3,13.30552693]
[1771055243947,0.48762503,2057.0,2056.3,14.52130171]
[1771055244275,0.48762503,2057.0,2056.3,13.30552693]
[1771055244678,0.48762503,2056.8,2056.3,13.30552693]
[1771055245267,1.21542126,2056.9,2056.3,15.01169212]
[1771055245470,1.21538676,2057.0,2056.5,0.49039345]
[1771055245765,1.21538676,2057.0,2056.5,13.79592038]
[1771055245997,4.19896617,2057.1,2056.5,13.79592038]
[1771055246985,1.70296617,2057.1,2056.5,13.30552693]
[1771055247162,1.70296617,2057.1,2056.5,14.5211825]
[1771055247791,0.48762503,2057.0,2056.5,13.30552693]
[1771055247991,0.48762503,2057.0,2056.3,14.52125565]
[1771055248193,0.48762503,2056.9,2056.1,2.496]
[1771055248352,13.30552693,2057.0,2056.0,0.001]
[1771055248353,0.48762503,2056.7,2056.0,0.001]
[1771055248880,0.48762503,2056.5,2056.0,0.001]
[1771055251281,1.68394383,2056.4,2056.0,0.001]
[1771055251463,0.46822705,2056.3,2056.0,0.001]
[1771055251653,0.46822705,2056.2,2056.0,0.001]
[1771055253164,0.46822705,2056.2,2055.8,0.001]
[1771055253562,1.21589416,2056.1,2055.8,0.001]
[1771055256966,1.68410178,2056.2,2055.8,0.001]
[1771055261890,1.68406474,2056.2,2055.8,0.001]
[1771055262398,0.45807762,2056.1,2055.8,0.001]
[1771055263777,1.2159533,2056.0,2055.8,0.001]
[1771055264285,4.86359047,2056.1,2055.8,0.001]
[1771055264489,1.67391265,2056.2,2055.8,0.001]
[1771055266669,0.45807762,2056.1,2055.8,0.001]
[1771055268508,1.2159533,2056.0,2055.8,0.001]
[1771055281521,1.67401493,2056.1,2055.8,0.001]
[1771055284332,1.21593731,2056.1,2055.8,0.001]
[1771055285435,1.70866142,2056.1,2055.8,0.001]
[1771055285618,1.70866142,2056.1,2055.7,0.001]
[1771055288161,0.49272411,2056.0,2055.5,0.001]
[1771055288336,0.49272411,2055.8,2055.5,0.001]
[1771055289338,1.21613075,2055.7,2055.4,0.001]
[1771055291420,4.86452303,2055.8,2055.4,0.001]
[1771055295241,5.35724714,2055.8,2055.4,0.001]
[1771055300949,4.86452303,2055.8,2055.4,0.001]
[1771055302248,5.35724714,2055.8,2055.4,0.001]
[1771055304281,5.35724714,2055.8,2055.3,0.001]
[1771055304568,0.49272411,2055.7,2055.3,0.001]
[1771055304863,2.497,2055.6,2055.3,0.001]
[1771055306260,1.21624908,2055.5,2055.3,0.001]
[1771055310672,1.21624908,2055.5,2055.2,0.001]
[1771055312472,1.70817105,2055.5,2055.2,0.001]
[1771055312847,0.49192197,2055.3,2055.0,0.001]
[1771055313155,2.497,2055.2,2055.0,0.001]
[1771055314249,2.497,2055.2,2055.0,0.4785245]
[1771055315069,3.71323166,2055.6,2055.1,0.4775245]
[1771055317454,4.20515363,2055.6,2055.0,0.001]
[1771055317655,0.5,2055.5,2055.0,0.001]
[1771055317859,0.99192197,2055.5,2055.0,0.001]
[1771055318057,0.5,2055.5,2055.0,0.4785245]
[1771055319952,1.67526508,2055.4,2055.0,0.001]
[1771055320154,0.45895682,2055.3,2055.0,0.001]
[1771055322058,1.21642662,2055.2,2055.0,0.001]
[1771055324261,3.71342662,2055.2,2055.0,0.001]
[1771055328181,3.71342662,2055.2,2054.9,0.001]
[1771055330969,2.497,2055.2,2054.9,0.5005365]
[1771055331366,1.21639442,2055.3,2054.9,0.5005365]
[1771055331667,3.71339442,2055.3,2054.9,0.5005365]
[1771055331868,2.497,2055.3,2054.9,0.5005365]
[1771055332085,3.71336848,2055.3,2054.9,0.5005365]
[1771055333370,2.497,2055.3,2055.0,0.4995365]
[1771055334191,0.45895682,2055.2,2054.7,0.001]
[1771055335285,1.21648581,2055.1,2054.7,0.001]
[1771055335878,1.67544263,2055.1,2054.7,0.001]
[1771055336088,1.21737205,2055.5,2054.9,0.48003564]
[1771055337276,1.21737205,2055.5,2054.9,1.69662763]
[1771055337810,1.21737205,2055.5,2055.0,0.48003564]
[1771055340400,1.21737205,2055.5,2055.0,1.69657487]
[1771055340801,1.21737205,2055.5,2055.0,0.48003564]
[1771055341568,0.45628174,2055.4,2054.8,0.48003564]
[1771055341774,0.45628174,2055.3,2054.7,0.001]
[1771055342302,0.45628174,2055.3,2054.7,0.48103564]
[1771055343300,1.21642662,2055.2,2054.7,0.48103564]
[1771055345100,1.67270836,2055.2,2054.7,0.001]
[1771055345598,1.21642662,2055.2,2054.7,0.48103564]
[1771055346200,1.21642662,2055.2,2054.7,0.001]
[1771055346201,1.67270836,2055.2,2054.7,0.001]
[1771055346907,0.45628174,2055.1,2054.7,0.001]
[1771055347589,1.21654501,2055.0,2054.7,0.001]
[1771055348305,1.21652945,2055.1,2054.7,0.001]
[1771055348470,1.21647353,2055.2,2054.7,0.48103564]
[1771055348675,1.21639325,2055.3,2054.7,0.48103564]
[1771055349825,1.21639325,2055.3,2054.8,0.48003564]
[1771055350809,0.45628174,2055.2,2054.7,0.001]
[1771055351806,1.21648581,2055.1,2054.7,0.001]
[1771055357592,1.67276755,2055.1,2054.7,0.001]
[1771055364808,1.21646466,2055.2,2054.7,0.001]
[1771055365313,1.6727464,2055.2,2054.7,0.001]
[1771055369188,1.21646466,2055.2,2054.7,0.48103564]
[1771055369393,1.2163416,2055.4,2055.0,13.81385843]
[1771055370917,0.0011,2055.5,2055.0,13.33382279]
[1771055371121,0.0011,2055.5,2055.2,13.33382279]
[1771055372193,0.0011,2055.5,2055.2,13.81385843]
[1771055374025,0.0011,2055.5,2055.2,0.48003564]
[1771055374997,0.0011,2055.5,2055.2,15.03027352]
[1771055378806,0.0011,2055.5,2055.2,13.81385843]
[1771055379605,0.0011,2055.5,2054.9,13.80327575]
[1771055379827,0.0011,2055.5,2055.0,0.46945296]
[1771055380732,0.0011,2055.5,2055.2,0.46945296]
[1771055380935,0.0011,2055.5,2055.3,15.01963194]
[1771055383818,0.0011,2055.5,2055.3,13.80327575]
[1771055384747,0.0011,2055.5,2055.3,13.33382279]
[1771055386150,0.0011,2055.5,2055.3,14.55018903]
[1771055386353,0.0011,2055.8,2055.6,0.46945296]
[1771055386536,0.0011,2055.9,2055.7,13.33382279]
[1771055387152,0.0011,2055.9,2055.6,0.46945296]
[1771055387717,0.0011,2056.0,2055.7,13.33382279]
[1771055388146,0.0011,2056.0,2055.7,14.54990719]
[1771055388717,0.0011,2056.3,2055.9,13.80327575]
[1771055390142,0.0011,2056.3,2056.0,0.46945296]
[1771055390318,0.0011,2056.3,2056.0,1.68536695]
[1771055390519,0.0011,2056.5,2056.1,13.80327575]
[1771055391621,0.0011,2056.5,2056.0,1.21591399]
[1771055391622,0.0011,2056.5,2056.3,13.33382279]
[1771055391820,0.0011,2056.5,2056.2,0.46945296]
[1771055392054,0.0011,2056.5,2056.2,13.80327575]
[1771055392246,0.0011,2056.5,2056.2,15.01906239]
[1771055393278,0.0011,2056.6,2056.2,15.01906239]
[1771055394751,0.0011,2056.6,2056.2,1.6852396]
[1771055395068,0.0011,2056.6,2056.3,13.33382279]
[1771055396496,0.48541389,2056.6,2056.0,1.21592537]
[1771055396779,0.48541389,2056.6,2056.0,3.71192537]
[1771055396780,0.48431389,2056.5,2056.0,3.71192537]
[1771055397760,1.69998399,2056.5,2056.0,3.71192537]
[1771055398161,0.48431389,2056.5,2056.0,3.71192537]
[1771055398684,0.0011,2056.6,2056.3,13.33382279]
[1771055399396,0.48541389,2056.9,2056.5,13.33382279]
[1771055399694,0.48541389,2056.9,2056.4,1.21571678]
[1771055400055,1.70083973,2056.9,2056.3,16.29927575]
[1771055400389,0.48431389,2056.8,2056.2,3.71180906]
[1771055400685,0.48431389,2056.8,2056.2,3.71183147]
[1771055400890,0.48431389,2056.5,2055.7,1.21613075]
[1771055401083,0.48431389,2056.5,2055.7,3.71213075]
[1771055401287,0.48431389,2056.5,2055.7,17.49938716]
[1771055401461,0.48431389,2056.5,2055.8,13.78725641]
[1771055401658,1.21645118,2057.1,2056.4,13.33382279]
[1771055401862,0.4852963,2057.0,2056.4,13.33382279]
[1771055402168,0.4852963,2057.0,2056.3,0.45343362]
[1771055402603,0.4852963,2057.0,2056.2,2.496]
[1771055404172,0.4852963,2056.8,2056.2,2.496]
[1771055404892,0.4852963,2056.8,2056.0,17.0457351]
[1771055405290,0.4852963,2056.8,2056.0,2.496]
[1771055406401,1.21551686,2056.8,2056.1,0.45343362]
[1771055406586,1.70081316,2056.8,2056.1,0.45343362]
[1771055406787,0.4852963,2056.7,2056.1,0.45343362]
[1771055406984,0.4852963,2056.7,2056.0,17.0457667]
[1771055407291,0.4852963,2056.7,2056.0,17.49920032]
[1771055408798,0.4852963,2056.9,2056.1,0.45343362]
[1771055409317,0.4852963,2056.9,2056.0,17.0457667]
[1771055410779,0.4852963,2056.7,2056.0,17.49920032]
[1771055411912,0.4852963,2056.7,2056.0,17.0457667]
[1771055412122,0.4852963,2056.7,2056.1,0.45343362]
[1771055412490,1.7007578,2056.9,2056.1,0.45343362]
[1771055412993,1.70078372,2056.8,2056.2,1.21583503]
[1771055413791,0.4852963,2056.7,2056.2,1.21583503]
[1771055414917,1.70089486,2056.6,2056.0,17.04574101]
[1771055415124,0.4852963,2056.6,2056.0,17.04574101]
[1771055415901,4.86200964,2056.8,2056.0,17.04574101]
[1771055415902,1.21552569,2056.8,2056.1,0.45343362]
[1771055416113,1.70082199,2056.8,2056.1,0.45343362]
[1771055416313,1.70082199,2056.8,2056.2,13.33382279]
[1771055416825,0.4852963,2056.7,2056.2,13.33382279]
[1771055417021,0.4852963,2056.5,2056.0,15.82982279]
[1771055417322,0.4852963,2056.5,2056.0,2.496]
[1771055418203,0.4852963,2056.5,2056.0,3.71194652]
[1771055418391,1.21559856,2056.6,2056.0,17.04576931]
[1771055418591,1.70087129,2056.7,2056.1,0.45343362]
[1771055418788,1.21538893,2057.0,2056.4,13.78725641]
[1771055419021,1.70068523,2057.0,2056.4,14.97714982]
[1771055419520,1.70068523,2057.0,2056.4,1.21568067]
[1771055420101,0.4852963,2056.9,2056.3,1.21573239]
[1771055420526,0.4852963,2056.9,2056.2,14.52382738]
[1771055421228,1.21548035,2056.8,2056.2,14.977261]
[1771055421524,1.70077665,2056.8,2056.2,14.977261]
[1771055422529,1.70077665,2056.8,2056.2,14.52382738]
[1771055422723,0.4852963,2056.8,2056.2,14.52382738]
[1771055423120,0.4852963,2057.0,2056.3,0.45343362]
[1771055423338,0.0011,2057.1,2056.6,14.97706771]
[1771055424555,0.0011,2057.1,2056.8,13.30803553]
[1771055424702,0.0011,2057.3,2057.0,13.30803553]
[1771055424905,0.0011,2057.3,2057.0,13.76146915]
[1771055425421,0.0011,2057.3,2057.0,14.976779]
[1771055425745,0.0011,2057.3,2057.0,13.76146915]
[1771055425956,0.0011,2057.3,2057.0,14.97682897]
[1771055429730,0.0011,2057.3,2056.9,14.97684911]
[1771055430736,0.0011,2057.3,2056.9,1.66881358]
[1771055430934,0.0011,2057.3,2057.0,13.30803553]
[1771055431135,0.0033,2057.5,2057.2,13.75836197]
[1771055431430,0.47376597,2057.8,2057.4,13.30803553]
[1771055431634,0.0033,2057.7,2057.4,13.30803553]
[1771055431831,1.69189488,2058.0,2057.4,13.30803553]
[1771055432019,1.68859488,2058.0,2057.4,13.30803553]
[1771055432227,0.0033,2057.9,2057.4,14.52316116]
[1771055432832,1.68859488,2058.0,2057.4,14.52316116]
[1771055433028,0.0033,2057.9,2057.4,14.52316116]
[1771055433230,1.21469484,2058.2,2057.8,13.30803553]
[1771055434237,1.68846081,2058.2,2057.6,13.30803553]
[1771055435244,0.47376597,2058.1,2057.4,1.21508705]
[1771055435859,1.21477162,2058.0,2057.4,1.21508705]
[1771055436046,0.47376597,2057.9,2057.4,1.21508705]
[1771055436421,1.21477162,2058.0,2057.4,1.21508705]
[1771055436923,1.21477162,2058.0,2057.4,1.66541349]
[1771055437148,1.21477162,2058.0,2057.5,13.75836197]
[1771055437351,1.68852033,2058.1,2057.4,14.52312258]
[1771055437556,0.47376597,2058.0,2057.4,14.52312258]
[1771055438035,0.47376597,2057.9,2057.2,2.495]
[1771055438244,0.47376597,2057.9,2057.2,17.01822654]
[1771055438427,0.47376597,2057.9,2057.2,17.46855298]
[1771055440367,1.68860073,2057.9,2057.2,17.46855298]
[1771055442796,0.47376597,2057.9,2057.2,17.46855298]
[1771055442988,1.68860403,2057.9,2057.2,17.46855298]
[1771055443401,1.68860403,2057.9,2057.2,17.01822654]
[1771055443688,1.68860403,2057.9,2057.2,17.48569151]
[1771055443993,0.47376597,2057.9,2057.2,17.48569151]
[1771055444192,1.21474694,2058.1,2057.5,0.46746497]
[1771055444347,1.69040868,2058.1,2057.5,0.46746497]
[1771055446490,0.47566174,2058.0,2057.5,1.21506682]
[1771055446685,1.21474694,2058.1,2057.5,1.68253179]
[1771055447487,1.21474694,2058.1,2057.5,1.21506682]
[1771055447666,0.47566174,2058.0,2057.2,17.48571113]
[1771055447866,0.47566174,2058.0,2057.3,0.46746497]
[1771055448473,1.69044571,2058.0,2057.4,14.52316141]
[1771055448678,1.69044571,2058.0,2057.4,14.99062638]
[1771055449352,4.85867852,2058.2,2057.4,14.99062638]
[1771055449353,1.21468104,2058.2,2057.5,0.46746497]
[1771055449787,0.47566174,2058.1,2057.4,14.52316141]
[1771055449984,0.47566174,2058.1,2057.4,14.99062638]
[1771055450184,0.47566174,2058.1,2057.5,0.46746497]
[1771055450483,1.69038263,2058.1,2057.6,1.21500777]
[1771055450676,1.69038263,2058.1,2057.5,1.68248772]
[1771055452195,1.21472089,2058.1,2057.5,1.21502275]
[1771055452363,0.47566174,2058.0,2057.5,1.21502275]
[1771055453190,1.69045404,2058.0,2057.5,1.21502275]
[1771055453775,1.69045404,2058.0,2057.4,14.52311914]
[1771055453975,1.69045404,2058.0,2057.4,14.99058411]
[1771055454504,1.2147923,2058.0,2057.4,14.99058411]
[1771055454724,1.69031877,2058.2,2057.6,13.30803553]
[1771055454865,0.47566174,2058.2,2057.6,13.7755005]
[1771055455193,0.47566174,2058.2,2057.7,1.21494872]
[1771055455364,1.71612061,2058.4,2057.8,13.30803553]
[1771055455563,0.50154794,2058.4,2057.8,13.7755005]
[1771055455763,0.0258862,2058.4,2058.0,13.7755005]
[1771055455961,1.21546479,2058.7,2058.2,13.7755005]
[1771055456176,0.0011,2058.7,2058.2,13.30803553]
[1771055456364,0.0011,2058.7,2058.2,13.7755005]
[1771055458077,0.0011,2058.7,2058.3,1.21459456]
[1771055458398,0.0011,2058.7,2058.1,5.32618392]
[1771055458697,0.0011,2058.7,2058.1,1.68217756]
[1771055458879,0.47676174,2058.7,2058.1,1.68217756]
[1771055459084,0.47676174,2058.7,2058.1,1.21471259]
[1771055459676,0.47676174,2058.7,2058.0,14.52278019]
[1771055460200,0.47566174,2058.5,2058.0,14.52278019]
[1771055460566,1.21441756,2058.6,2058.0,14.52278019]
[1771055460799,1.6900793,2058.6,2058.0,14.52278019]
[1771055461099,0.47566174,2058.5,2058.0,14.52278019]
[1771055461797,1.21549717,2058.7,2058.0,15.00657707]
[1771055462106,1.69808774,2058.7,2058.1,1.69846524]
[1771055462402,0.48259057,2058.6,2057.9,2.494]
[1771055462570,0.48259057,2058.5,2057.6,13.30803553]
[1771055462770,0.48259057,2058.5,2057.6,14.52299875]
[1771055463291,0.48259057,2058.5,2057.6,13.30803553]
[1771055463498,0.48259057,2058.5,2057.6,14.52303654]
[1771055463698,0.48259057,2058.5,2057.6,13.30803553]
[1771055463899,0.48259057,2058.5,2057.6,14.52303766]
[1771055464114,0.48259057,2058.3,2057.6,14.52303766]
[1771055464485,1.21453556,2058.4,2057.8,13.79183241]
[1771055464787,0.50405062,2060.4,2059.2,0.48379688]
[1771055464987,21.89934693,2061.1,2059.5,30.48379688]
[1771055464988,0.48259057,2061.1,2059.5,30.48379688]
[1771055465185,0.48259057,2061.3,2060.4,13.30803553]
[1771055465391,13.30803553,2061.3,2060.5,0.45122385]
[1771055465593,0.48259057,2061.2,2060.6,0.45122385]
[1771055465815,0.48259057,2061.2,2060.7,0.45122385]
[1771055466005,2.61274373,2061.5,2060.8,0.45122385]
[1771055466178,2.61274373,2061.5,2060.9,0.45122385]
[1771055466179,1.6953969,2061.4,2060.9,0.45122385]